bitfinex-derivatives/quotes_SOLF0:USTF0_20260207
["timestamp","ask_amount","ask_price","bid_price","bid_amount"]
[1770472341506,9.16994288,86.035,85.982,31.77807709]
[1770472341706,9.16994288,86.035,85.911,34.92]
[1770472341707,9.16994288,86.061,85.989,31.87158859]
[1770472341916,9.16994288,86.06,85.989,31.87158859]
[1770472342109,9.16994288,86.059,85.989,31.87158859]
[1770472342414,9.16994288,86.058,85.989,31.87158859]
[1770472342613,9.16994288,86.057,85.989,31.87158859]
[1770472342818,10.4707,86.055,85.991,31.86756034]
[1770472343014,9.16994288,86.054,85.991,31.86756034]
[1770472343318,10.4723,86.043,85.991,31.86756034]
[1770472343613,9.09358415,86.042,85.976,31.91781463]
[1770472343807,10.4736,86.032,85.976,31.91781463]
[1770472345715,14.38654273,86.056,85.976,31.91781463]
[1770472345716,10.4724,86.042,85.976,31.91781463]
[1770472345915,9.09358415,86.041,85.976,31.91781463]
[1770472346215,9.09358415,86.04,85.976,31.91781463]
[1770472346417,9.09358415,86.051,85.976,31.91781463]
[1770472346713,19.56488415,86.05,85.986,32.12561862]
[1770472346912,10.4713,86.05,85.986,32.12561862]
[1770472347217,19.56488415,86.05,85.986,32.12561862]
[1770472347418,9.09358415,86.049,85.986,32.12561862]
[1770472347915,9.09358415,86.049,85.992,31.97131292]
[1770472348315,9.09358415,86.048,85.992,31.97131292]
[1770472348517,9.09358415,86.049,85.992,31.97131292]
[1770472348719,10.4713,86.05,85.992,31.97131292]
[1770472348720,9.09358415,86.048,85.992,31.97131292]
[1770472348916,9.09358415,86.074,86.006,31.96776174]
[1770472349116,9.09358415,86.073,86.006,31.96776174]
[1770472349319,9.09358415,86.072,86.006,31.96776174]
[1770472349515,10.4689,86.07,86.016,10.4755]
[1770472349715,9.09358415,86.069,86.017,32.04470547]
[1770472349910,9.09358415,86.068,86.017,32.04470547]
[1770472350215,9.09358415,86.067,86.017,32.04470547]
[1770472350417,9.09358415,86.066,86.017,32.04470547]
[1770472350615,9.09358415,86.065,86.017,32.04470547]
[1770472350818,9.09358415,86.064,86.02,32.04139979]
[1770472351125,9.09358415,86.069,86.02,32.04139979]
[1770472351321,34.92,86.092,85.959,20.9648]
[1770472351322,9.09358415,86.068,86.022,32.00578731]
[1770472351621,9.09358415,86.078,86.022,32.00578731]
[1770472351819,9.09358415,86.077,86.022,32.00578731]
[1770472352018,9.09358415,86.076,86.022,32.00578731]
[1770472352218,9.09358415,86.075,86.035,32.00578731]
[1770472352424,9.09358415,86.075,85.96,34.92]
[1770472352425,9.09358415,86.074,86.019,32.00249472]
[1770472352621,9.09358415,86.073,86.019,32.00249472]
[1770472352922,10.4688,86.071,86.021,32.00249472]
[1770472353120,9.09358415,86.07,86.021,32.00249472]
[1770472353321,9.09358415,86.07,85.959,20.9648]
[1770472353322,9.09358415,86.069,86.008,32.00815741]
[1770472353520,9.09358415,86.068,86.008,32.00815741]
[1770472353720,9.09358415,86.067,86.008,32.00815741]
[1770472353916,9.09358415,86.066,86.008,32.00815741]
[1770472354121,10.4688,86.071,86.012,32.00815741]
[1770472354326,9.09358415,86.07,86.012,32.00815741]
[1770472354524,9.09358415,86.069,86.012,32.00815741]
[1770472354726,10.4676,86.081,86.016,32.00495987]
[1770472354915,9.09358415,86.08,86.016,32.00495987]
[1770472355118,9.09358415,86.079,86.016,32.00495987]
[1770472355318,9.09358415,86.078,86.016,32.00495987]
[1770472355526,9.09358415,86.077,86.016,32.00495987]
[1770472355732,9.09358415,86.076,86.021,33.71510102]
[1770472355927,9.09358415,86.075,86.021,33.71510102]
[1770472356222,9.09358415,86.074,86.021,33.71510102]
[1770472356525,9.09358415,86.073,86.021,33.71510102]
[1770472356722,9.09358415,86.072,86.021,33.71510102]
[1770472356924,9.09358415,86.08,86.025,33.71450323]
[1770472357228,9.09358415,86.079,86.025,33.71450323]
[1770472357521,9.09358415,86.078,86.025,33.71450323]
[1770472357725,9.09358415,86.077,86.025,33.71450323]
[1770472357927,9.09358415,86.076,86.025,33.71450323]
[1770472358128,9.09358415,86.075,86.025,33.71450323]
[1770472358329,9.09358415,86.074,86.025,33.71450323]
[1770472358529,9.09358415,86.073,86.025,33.71450323]
[1770472358725,9.09358415,86.072,86.025,33.71450323]
[1770472358920,9.09358415,86.071,86.025,33.71450323]
[1770472359116,9.09358415,86.07,86.027,33.13088124]
[1770472359418,9.09358415,86.069,86.027,33.13088124]
[1770472359623,9.09358415,86.09,86.027,33.13088124]
[1770472359929,9.09358415,86.089,86.027,33.13088124]
[1770472360223,9.09358415,86.088,86.027,33.13088124]
[1770472360424,9.09358415,86.087,86.033,32.7118955]
[1770472360628,9.09358415,86.086,86.033,32.7118955]
[1770472360828,9.09358415,86.085,86.033,32.7118955]
[1770472361030,9.09358415,86.084,86.033,32.7118955]
[1770472361330,10.4652,86.101,86.033,32.7118955]
[1770472361525,8.98232903,86.1,86.047,33.07338986]
[1770472361731,8.98232903,86.099,86.047,33.07338986]
[1770472361924,10.63150486,86.095,86.047,33.07338986]
[1770472362130,10.63150486,86.093,86.047,33.07338986]
[1770472362432,10.4671,86.085,86.047,33.07338986]
[1770472362632,8.98232903,86.084,86.047,33.07338986]
[1770472362931,8.98232903,86.083,86.047,33.07338986]
[1770472363233,8.98232903,86.082,86.047,33.07338986]
[1770472363430,8.98232903,86.081,86.047,33.07338986]
[1770472363638,8.98232903,86.08,86.047,33.07338986]
[1770472363827,8.98232903,86.079,86.047,33.07338986]
[1770472364027,8.98232903,86.078,86.047,33.07338986]
[1770472364228,8.98232903,86.077,86.047,33.07338986]
[1770472364430,8.98232903,86.076,86.047,33.07338986]
[1770472364631,8.98232903,86.075,86.047,33.07338986]
[1770472364835,8.98232903,86.074,86.047,33.07338986]
[1770472365037,8.98232903,86.073,86.047,33.07338986]
[1770472365225,9.00187514,86.072,86.047,33.07338986]
[1770472365430,9.00187514,86.071,86.047,33.07338986]
[1770472365630,10.63150486,86.09,86.047,33.07338986]
[1770472365832,9.0034553,86.089,86.047,33.07338986]
[1770472366036,9.0034553,86.088,86.047,33.07338986]
[1770472366237,9.0034553,86.087,86.047,33.07338986]
[1770472366539,9.0034553,86.086,86.047,33.07338986]
[1770472366730,9.0034553,86.085,86.047,33.07338986]
[1770472366925,9.0034553,86.084,86.047,33.07338986]
[1770472367236,9.0034553,86.083,86.047,33.07338986]
[1770472367434,9.0034553,86.082,86.047,33.07338986]
[1770472367637,9.0034553,86.081,86.049,33.19074531]
[1770472367835,9.0034553,86.08,86.049,33.19074531]
[1770472368133,9.0034553,86.079,86.049,33.19074531]
[1770472368329,9.0034553,86.078,86.049,33.19074531]
[1770472368637,9.0034553,86.077,86.049,33.19074531]
[1770472368838,9.0034553,86.076,86.049,33.19074531]
[1770472369136,9.0034553,86.075,86.049,33.19074531]
[1770472369437,9.0034553,86.074,86.049,33.19074531]
[1770472369737,9.0034553,86.073,86.049,33.19074531]
[1770472369938,10.63150486,86.092,86.049,33.19074531]
[1770472370132,9.01291397,86.091,86.049,33.19074531]
[1770472370330,9.01291397,86.09,86.049,33.19074531]
[1770472370527,9.01291397,86.089,86.049,33.19074531]
[1770472370728,34.92,86.115,85.969,261.60083284]
[1770472370729,11.63734616,86.124,86.073,28.10364152]
[1770472371641,10.4609,86.136,86.088,28.10364152]
[1770472372039,22.66601899,86.136,86.088,28.10364152]
[1770472372235,12.20511899,86.15,86.091,28.10364152]
[1770472372836,12.20511899,86.15,86.104,28.10364152]
[1770472373245,12.32945651,86.165,86.104,28.10364152]
[1770472373537,14.38654273,86.174,86.115,28.10364152]
[1770472373738,12.23864474,86.193,86.115,28.10364152]
[1770472374543,12.36094971,86.191,86.136,28.10364152]
[1770472375236,12.47889443,86.18,86.136,28.10364152]
[1770472376338,12.65572344,86.178,86.136,28.10364152]
[1770472378241,12.83200403,86.165,86.105,28.10364152]
[1770472379745,10.4582,86.159,86.105,28.10364152]
[1770472380845,10.4585,86.156,86.105,28.10364152]
[1770472381735,12.81627695,86.158,86.105,28.10364152]
[1770472382536,13.00168746,86.156,86.105,28.10364152]
[1770472382737,13.00168746,86.154,86.105,28.10364152]
[1770472382938,8.88181781,86.153,86.105,28.10364152]
[1770472383144,10.4588,86.153,86.105,28.10364152]
[1770472383336,8.88181781,86.152,86.105,28.10364152]
[1770472383742,10.4588,86.153,86.105,28.10364152]
[1770472383937,12.86328578,86.152,86.105,28.10364152]
[1770472384349,12.86328578,86.141,86.086,28.10364152]
[1770472385343,10.4617,86.13,86.086,28.10364152]
[1770472387041,10.463,86.119,86.086,28.10364152]
[1770472387546,13.41215088,86.129,86.073,28.0339229]
[1770472388550,13.30769926,86.127,86.073,28.0339229]
[1770472388746,10.4642,86.109,86.073,28.0339229]
[1770472391338,10.4625,86.123,86.073,28.0339229]
[1770472391543,22.49566237,86.144,86.073,28.0339229]
[1770472392351,57.53231046,86.143,86.073,28.0339229]
[1770472392547,34.92,86.141,86.073,28.0339229]
[1770472392845,10.4613,86.133,86.075,27.90575827]
[1770472393655,10.4625,86.123,86.075,27.90575827]
[1770472394752,10.4613,86.133,86.079,27.90575827]
[1770472395758,10.4613,86.133,86.081,27.90575827]
[1770472396854,10.4613,86.133,86.085,27.90575827]
[1770472400047,10.4613,86.133,86.088,27.90575827]
[1770472400955,22.71774497,86.156,86.088,27.90575827]
[1770472401857,10.4592,86.151,86.101,27.90575827]
[1770472402356,10.4601,86.143,86.101,27.90575827]
[1770472403060,33.63696675,86.139,86.101,27.90575827]
[1770472403452,8.69601931,86.138,86.101,27.90575827]
[1770472403651,8.69601931,86.137,86.101,27.90575827]
[1770472403948,8.69601931,86.136,86.101,27.90575827]
[1770472404260,33.63696675,86.139,86.101,27.90575827]
[1770472404261,8.69601931,86.135,86.101,27.90575827]
[1770472404452,8.69601931,86.134,86.101,27.90575827]
[1770472404648,8.69601931,86.133,86.101,27.90575827]
[1770472404853,8.69601931,86.132,86.101,27.90575827]
[1770472405054,8.69601931,86.131,86.101,27.90575827]
[1770472405252,8.69601931,86.13,86.101,27.90575827]
[1770472405458,8.69601931,86.129,86.101,27.90575827]
[1770472405659,8.69601931,86.128,86.101,27.90575827]
[1770472405859,8.69601931,86.127,86.101,27.90575827]
[1770472406060,8.69601931,86.126,86.101,27.90575827]
[1770472406360,8.69601931,86.125,86.101,27.90575827]
[1770472406559,8.69601931,86.124,86.101,27.90575827]
[1770472406760,8.69601931,86.123,86.101,27.90575827]
[1770472406960,8.69601931,86.122,86.101,27.90575827]
[1770472407154,8.69601931,86.121,86.101,27.90575827]
[1770472407360,8.69601931,86.12,86.101,27.90575827]
[1770472407663,8.69601931,86.119,86.101,27.90575827]
[1770472407851,8.69601931,86.118,86.101,27.90575827]
[1770472408056,8.69601931,86.117,86.101,27.90575827]
[1770472408256,8.69601931,86.116,86.101,27.90575827]
[1770472408450,8.69601931,86.115,86.101,27.90575827]
[1770472408653,8.69601931,86.114,86.101,27.90575827]
[1770472408855,8.69601931,86.113,86.101,27.90575827]
[1770472409056,8.69601931,86.112,86.101,27.90575827]
[1770472409258,33.63696675,86.139,86.101,27.90575827]
[1770472409457,10.4599,86.136,86.101,27.90575827]
[1770472409659,8.71511216,86.135,86.101,27.90575827]
[1770472409853,8.71511216,86.134,86.101,27.90575827]
[1770472410060,8.71511216,86.133,86.101,27.90575827]
[1770472410264,8.71511216,86.132,86.101,27.90575827]
[1770472410561,8.71511216,86.131,86.101,27.90575827]
[1770472410766,8.71511216,86.13,86.101,27.90575827]
[1770472410964,8.71511216,86.129,86.101,27.90575827]
[1770472411170,8.71511216,86.128,86.101,27.90575827]
[1770472411373,8.71511216,86.127,86.101,27.90575827]
[1770472411574,8.71511216,86.126,86.101,27.90575827]
[1770472411770,8.71511216,86.125,86.065,10.4684]
[1770472411970,8.71511216,86.124,86.065,10.4684]
[1770472412170,8.71511216,86.123,86.065,10.4684]
[1770472412370,8.71511216,86.122,86.065,10.4684]
[1770472412573,8.71511216,86.121,86.065,10.4684]
[1770472412774,8.71511216,86.12,86.065,10.4684]
[1770472412972,8.71511216,86.119,86.065,10.4684]
[1770472413168,8.71511216,86.118,86.065,10.4684]
[1770472413372,8.71511216,86.117,86.065,10.4684]
[1770472413673,8.71511216,86.116,86.069,27.90575827]
[1770472413879,8.71511216,86.115,86.069,27.90575827]
[1770472414071,8.71511216,86.114,86.069,27.90575827]
[1770472414273,8.71511216,86.113,86.069,27.90575827]
[1770472414472,8.71511216,86.112,86.069,27.90575827]
[1770472414777,8.71511216,86.111,86.069,27.90575827]
[1770472414978,8.71511216,86.11,86.069,27.90575827]
[1770472415277,39.92851289,86.129,86.028,20.9459]
[1770472415278,10.4608,86.129,86.074,27.90575827]
[1770472415476,8.73149897,86.128,86.074,27.90575827]
[1770472415670,10.461,86.127,86.074,27.90575827]
[1770472415976,14.38654273,86.135,86.074,27.90575827]
[1770472416175,29.62281406,86.135,86.074,27.90575827]
[1770472416376,10.4604,86.131,86.074,27.90575827]
[1770472418570,29.62281406,86.135,86.082,28.7629362]
[1770472419377,29.62281406,86.135,86.028,20.9459]
[1770472419378,29.62281406,86.135,86.085,28.7629362]
[1770472420788,29.62281406,86.135,86.091,28.7629362]
[1770472422382,14.38654273,86.143,86.1,10.4642]
[1770472422578,14.38654273,86.144,86.101,28.7629362]
[1770472422785,14.38654273,86.157,86.101,28.7629362]
[1770472423089,29.62281406,86.157,86.101,28.7629362]
[1770472423387,14.38654273,86.155,86.101,28.7629362]
[1770472423782,14.38654273,86.155,86.114,10.4624]
[1770472424188,44.00935679,86.156,86.114,10.4624]
[1770472424489,44.00935679,86.156,86.114,39.2253362]
[1770472424789,29.62281406,86.156,86.118,28.7629362]
[1770472425491,29.62281406,86.156,86.046,21.43436838]
[1770472425492,21.63116924,86.194,86.093,25.8578934]
[1770472425685,35.98035637,86.253,86.034,162.9008]
[1770472425686,29.62281406,86.2,86.102,25.8578934]
[1770472426379,10.4523,86.199,86.14,26.05416264]
[1770472426685,29.62281406,86.2,86.069,162.835]
[1770472427082,29.62281406,86.2,86.061,21.43436838]
[1770472427083,34.92,86.199,86.076,20.9342]
[1770472427484,32.76261816,86.169,86.107,10.4633]
[1770472427684,32.76261816,86.169,86.05,20.9406]
[1770472427878,32.76261816,86.169,86.053,14.45188163]
[1770472428082,32.76261816,86.169,86.052,14.45188163]
[1770472428285,32.76261816,86.154,86.05,20.9406]
[1770472428489,32.76261816,86.154,86.051,14.45188163]
[1770472429081,32.76261816,86.154,86.05,20.9406]
[1770472429283,32.76261816,86.154,86.051,0.19671895]
[1770472429794,32.28475885,86.15,86.092,0.19671895]
[1770472430686,32.28643918,86.146,86.092,0.19671895]
[1770472431277,32.28643918,86.133,86.076,10.4671]
[1770472431678,32.28643918,86.133,86.077,0.94223862]
[1770472432788,32.28643918,86.133,86.098,10.4643]
[1770472432983,32.28643918,86.133,86.094,1.13514473]
[1770472436885,32.40363364,86.128,86.068,1.58480477]
[1770472437086,32.40363364,86.12,86.068,1.58480477]
[1770472438694,32.24865143,86.114,86.068,1.58480477]
[1770472440590,32.24865143,86.114,86.069,0.63102469]
[1770472440894,10.80270881,86.131,86.069,0.63102469]
[1770472441095,33.15000867,86.145,86.069,0.63102469]
[1770472442093,33.01077257,86.143,86.05,1.25857156]
[1770472442290,43.81348138,86.136,86.05,1.25857156]
[1770472442497,33.01379157,86.135,86.05,1.25857156]
[1770472443789,32.91491177,86.129,86.075,1.62182918]
[1770472445787,32.93832994,86.125,86.076,10.4671]
[1770472448403,32.78069357,86.138,86.094,2.8780614]
[1770472448905,32.78069357,86.138,86.095,10.4647]
[1770472449100,32.78069357,86.138,86.096,3.03616506]
[1770472450803,32.78069357,86.138,86.099,10.4642]
[1770472454595,33.4607712,86.16,86.108,3.81982085]
[1770472455499,33.4607712,86.16,86.125,10.461]
[1770472460413,33.4607712,86.16,86.116,10.4621]
[1770472470815,33.4607712,86.158,86.108,3.81982085]
[1770472471614,10.4574,86.157,86.108,3.81982085]
[1770472471817,33.4607712,86.156,86.108,3.81982085]
[1770472472218,33.4607712,86.154,86.084,7.13139326]
[1770472473820,33.4607712,86.14,86.089,10.4655]
[1770472474820,33.4607712,86.13,86.057,14.45188163]
[1770472475024,34.92,86.129,86.054,8.14734028]
[1770472475226,33.4607712,86.12,86.054,8.14734028]
[1770472476218,35.74494544,86.096,86.054,8.14734028]
[1770472476423,35.74494544,86.096,86.042,19.03927134]
[1770472476728,35.74494544,86.096,86.043,8.56807134]
[1770472476924,35.74494544,86.093,86.031,19.04057134]
[1770472477123,35.74494544,86.093,86.031,8.56807134]
[1770472478728,35.74494544,86.086,86.031,8.56807134]
[1770472479632,35.74494544,86.082,86.031,8.56807134]
[1770472481523,35.74494544,86.079,86.031,8.56807134]
[1770472481828,35.74494544,86.079,85.976,8.81661059]
[1770472482629,35.74494544,86.078,86.011,8.92145394]
[1770472483722,35.74494544,86.078,86.017,8.50256702]
[1770472484435,35.74494544,86.09,86.037,8.60573988]
[1770472485428,35.74494544,86.09,86.048,8.57237146]
[1770472486730,35.74494544,86.09,86.037,10.4718]
[1770472490831,35.74494544,86.088,86.034,8.67157905]
[1770472491436,35.74494544,86.088,86.043,10.4711]
[1770472491638,35.74494544,86.088,86.043,19.58748805]
[1770472491939,35.74494544,86.088,86.044,9.11638805]
[1770472492437,35.74494544,86.088,86.046,10.4708]
[1770472492835,35.74494544,86.088,86.044,9.11638805]
[1770472493030,35.74494544,86.088,85.999,20.9529]
[1770472493239,35.74494544,86.088,86.026,9.30189288]
[1770472494735,35.74494544,86.088,86.034,10.4722]
[1770472495039,35.74494544,86.088,86.035,10.32913629]
[1770472496738,35.74494544,86.088,86.036,10.472]
[1770472497942,35.74494544,86.088,86.036,20.90443437]
[1770472498247,35.74494544,86.086,86.036,10.43243437]
[1770472498541,35.74494544,86.086,86.028,10.4729]
[1770472499849,34.92,86.111,86.028,10.4729]
[1770472499850,35.74494544,86.075,86.028,10.4729]
[1770472500240,35.74494544,86.068,86.025,10.43180378]
[1770472501946,35.74494544,86.068,86.023,10.4735]
[1770472502344,35.74494544,86.066,86.015,10.4745]
[1770472502546,35.74494544,86.066,86.016,11.09950309]
[1770472502940,35.74494544,86.064,86.017,10.4742]
[1770472503539,45.68258843,86.101,85.974,20.9591]
[1770472503540,35.74494544,86.058,86.004,10.99632494]
[1770472503747,35.74494544,86.057,85.96,10.99632494]
[1770472504441,35.74494544,86.057,85.99,11.07778158]
[1770472504942,35.74494544,86.069,85.99,11.07778158]
[1770472505136,35.74494544,86.08,86.032,11.15872936]
[1770472507245,35.74494544,86.08,86.034,11.93682473]
[1770472508551,35.74494544,86.08,85.976,34.92]
[1770472508552,35.74494544,86.08,86.043,11.86424822]
[1770472509753,35.74494544,86.08,86.044,22.10591132]
[1770472510152,35.74494544,86.08,86.045,11.71054993]
[1770472511057,37.51446149,86.101,86.049,11.90072972]
[1770472511943,37.51446149,86.099,86.049,11.90072972]
[1770472512144,37.51446149,86.097,86.036,12.08512749]
[1770472512752,37.51446149,86.092,86.039,10.4716]
[1770472514060,37.51446149,86.089,86.039,10.4716]
[1770472515960,37.51446149,86.087,86.039,10.4716]
[1770472518355,37.51446149,86.082,86.028,10.4728]
[1770472519258,37.51446149,86.08,86.028,10.4728]
[1770472520264,48.27704992,86.08,86.028,10.4728]
[1770472520454,37.51446149,86.079,86.028,10.4728]
[1770472521365,37.51446149,86.078,86.028,10.4728]
[1770472523057,37.51446149,86.078,86.021,12.81570645]
[1770472523058,48.27704992,86.075,86.021,12.81570645]
[1770472523263,37.51446149,86.074,86.021,12.81570645]
[1770472524062,37.51446149,86.074,86.018,10.4741]
[1770472524864,37.51446149,86.07,86.018,10.4741]
[1770472529369,37.51446149,86.07,86.021,10.4738]
[1770472532271,37.51446149,86.065,86.013,10.4747]
[1770472532667,37.51446149,86.063,86.007,13.74545522]
[1770472533474,37.51446149,86.054,85.999,10.4765]
[1770472534674,10.4705,86.048,85.999,10.4765]
[1770472534977,37.51446149,86.047,85.999,10.4765]
[1770472536883,36.20400163,86.043,85.996,13.75096235]
[1770472537380,36.20400163,86.04,85.981,14.0440276]
[1770472537681,36.20400163,86.031,85.971,14.0440276]
[1770472538780,36.20400163,86.03,85.978,10.479]
[1770472538983,36.20400163,86.03,85.968,14.09892765]
[1770472539182,34.92,86.042,85.968,14.09892765]
[1770472539183,36.20400163,86.028,85.968,14.09892765]
[1770472539683,36.20400163,86.027,85.968,24.57912765]
[1770472539886,36.20400163,86.027,85.951,14.43839545]
[1770472540390,36.20400163,86.023,85.966,14.46582116]
[1770472540879,36.20400163,86.019,85.966,14.46582116]
[1770472541678,10.4742,86.018,85.966,14.46582116]
[1770472541887,36.20400163,86.017,85.966,14.46582116]
[1770472543493,36.20400163,86.029,85.966,14.46582116]
[1770472544691,36.20400163,86.029,85.984,10.4783]
[1770472545292,36.20400163,86.029,85.977,14.524224]
[1770472545486,36.20400163,86.026,85.978,10.4789]
[1770472545895,36.20400163,86.026,85.927,20.9705]
[1770472545896,36.20400163,86.026,85.961,14.39334495]
[1770472546097,36.20400163,86.024,85.97,10.48]
[1770472546298,36.20400163,86.024,85.961,14.39334495]
[1770472547202,36.20400163,86.009,85.928,14.44512971]
[1770472547395,36.20400163,85.997,85.928,14.44512971]
[1770472547596,36.20400163,85.996,85.941,10.4835]
[1770472549704,36.20400163,85.996,85.958,10.4814]
[1770472549996,36.20400163,85.996,85.953,14.96027756]
[1770472550199,36.20400163,85.996,85.966,10.4804]
[1770472552401,36.20400163,85.996,85.94,14.64939654]
[1770472552798,36.20400163,85.996,85.949,10.4826]
[1770472554702,36.20400163,85.996,85.96,10.4812]
[1770472555307,36.20400163,85.996,85.952,10.4822]
[1770472555705,36.20400163,85.996,85.937,13.52888443]
[1770472556704,36.20400163,85.996,85.96,10.4812]
[1770472558307,36.20400163,85.996,85.929,12.95279241]
[1770472559706,36.20400163,85.995,85.949,10.4826]
[1770472560011,36.20400163,85.995,85.929,12.95279241]
[1770472560706,10.75028321,86.023,85.911,456.16043827]
[1770472560707,36.20400163,85.993,85.912,23.98204111]
[1770472560912,34.91,85.982,85.912,23.98204111]
[1770472561204,36.20400163,85.977,85.912,23.98204111]
[1770472561408,36.20400163,85.977,85.924,10.4856]
[1770472562502,36.20400163,85.972,85.924,10.4856]
[1770472564812,36.20400163,85.972,85.934,10.4843]
[1770472565216,36.20400163,85.972,85.923,24.34496517]
[1770472565515,10.75028321,86.029,85.923,24.34496517]
[1770472565809,45.66028321,86.034,85.923,24.34496517]
[1770472566006,34.91,86.033,85.923,24.34496517]
[1770472566209,45.66028321,86.033,85.923,24.34496517]
[1770472566408,34.91,86.033,85.923,24.34496517]
[1770472566618,45.66028321,86.033,85.923,24.34496517]
[1770472566810,10.75028321,86.034,85.943,36.08414036]
[1770472567011,34.91,86.032,85.943,36.08414036]
[1770472567409,34.91,86.032,85.954,36.08414036]
[1770472567613,35.30410921,86.027,85.954,36.08414036]
[1770472568819,35.30410921,86.027,85.979,10.4789]
[1770472570511,35.30410921,86.027,85.987,10.4779]
[1770472572623,35.30410921,86.027,85.978,47.61614305]
[1770472574316,35.30410921,86.027,85.987,37.13714305]
[1770472575921,35.30410921,86.027,85.989,10.4776]
[1770472579118,35.30410921,86.027,85.979,10.4789]
[1770472582615,38.54749094,86.024,85.97,10.4799]
[1770472583325,38.54749094,86.023,85.97,10.4799]
[1770472583525,38.54749094,86.023,85.978,10.479]
[1770472585322,38.54749094,86.022,85.978,10.479]
[1770472587723,38.54749094,86.022,85.962,37.13714305]
[1770472589133,38.54749094,86.022,85.965,37.13714305]
[1770472591625,38.54749094,86.02,85.965,37.13714305]
[1770472592231,38.54749094,86.02,85.971,37.13714305]
[1770472593934,38.54749094,86.02,85.975,37.13714305]
[1770472598431,38.54749094,86.02,85.978,38.72820353]
[1770472599035,38.54749094,86.02,85.979,49.20710353]
[1770472600426,35.08128653,86.036,85.982,38.72820353]
[1770472601738,35.08128653,86.036,85.998,10.4766]
[1770472602240,35.08128653,86.036,85.989,10.4776]
[1770472602442,35.08128653,86.036,85.989,49.20580353]
[1770472602937,35.08128653,86.036,85.934,20.9687]
[1770472602938,35.08128653,86.034,85.981,10.4786]
[1770472603334,35.08128653,86.034,85.981,49.20680353]
[1770472603944,35.08128653,86.034,85.988,10.4778]
[1770472604835,35.08128653,86.034,85.995,10.4769]
[1770472605036,10.78607723,86.053,85.991,38.72820353]
[1770472605342,10.78607723,86.057,85.991,38.72820353]
[1770472605744,10.78607723,86.057,86.011,10.475]
[1770472606436,10.469,86.061,86.011,10.475]
[1770472606437,10.78607723,86.055,86.011,10.475]
[1770472606835,10.78607723,86.059,86.011,10.475]
[1770472607035,35.08128653,86.058,86.011,10.475]
[1770472607236,45.86736376,86.058,86.011,10.475]
[1770472607543,35.08128653,86.057,86.011,10.475]
[1770472608535,35.08128653,86.057,86.021,10.4737]
[1770472609646,35.08128653,86.057,86.011,38.72820353]
[1770472612940,35.08128653,86.056,86.011,38.72820353]
[1770472613339,35.08128653,86.052,86.011,38.72820353]
[1770472617844,10.4703,86.05,86.011,38.72820353]
[1770472619639,35.08128653,86.052,86.011,38.72820353]
[1770472621646,35.08128653,86.052,86.012,10.4748]
[1770472621847,35.08128653,86.052,86.013,38.72820353]
[1770472622752,35.08128653,86.052,86.014,10.4746]
[1770472622951,35.08128653,86.052,86.015,38.72820353]
[1770472623156,35.08128653,86.052,85.962,38.72820353]
[1770472623451,35.08128653,86.052,85.998,38.72820353]
[1770472623850,35.08128653,86.046,85.998,38.72820353]
[1770472624750,35.08128653,86.041,85.998,38.72820353]
[1770472633957,35.08128653,86.041,86.002,35.20023972]
[1770472635653,36.7818409,86.062,86.004,35.20023972]
[1770472636760,36.7818409,86.062,86.017,35.20023972]
[1770472639259,36.7818409,86.062,86.007,35.20023972]
[1770472639656,36.7818409,86.058,86.007,35.20023972]
[1770472640257,36.7818409,86.058,86.011,35.20023972]
[1770472641460,36.7818409,86.057,86.011,35.20023972]
[1770472641654,36.7818409,86.057,86.016,35.20023972]
[1770472642849,36.7818409,86.057,86.018,35.20023972]
[1770472643052,36.7818409,86.056,86.018,35.20023972]
[1770472643254,10.83489001,86.052,85.969,35.20023972]
[1770472643454,36.7818409,86.035,85.969,35.20023972]
[1770472644764,36.7818409,86.035,85.984,35.20023972]
[1770472647767,36.7818409,86.035,85.987,35.20023972]
[1770472648361,10.83489001,86.031,85.987,35.20023972]
[1770472648667,36.7818409,86.03,85.987,35.20023972]
[1770472650666,36.7818409,86.03,85.991,35.20023972]
[1770472653366,36.7818409,86.03,85.993,10.4772]
[1770472659282,36.7818409,86.03,86.003,10.476]
[1770472661780,10.84382771,86.048,86.01,10.4751]
[1770472662977,10.84382771,86.054,86.001,37.90288433]
[1770472663178,10.84382771,86.052,86.001,37.90288433]
[1770472663578,10.84382771,86.048,86.001,37.90288433]
[1770472663777,35.51956067,86.047,86.001,37.90288433]
[1770472664183,35.51956067,86.046,86.001,37.90288433]
[1770472664779,35.51956067,86.046,86.005,10.4757]
[1770472665185,35.51956067,86.046,86.006,37.90288433]
[1770472666079,35.51956067,86.046,86.01,10.4751]
[1770472666281,35.51956067,86.058,86.011,37.90288433]
[1770472666978,35.51956067,86.068,86.011,37.90288433]
[1770472667178,35.51956067,86.068,86.033,10.4723]
[1770472667381,35.51956067,86.068,86.033,48.37518433]
[1770472668396,35.51956067,86.068,86.041,10.4713]
[1770472668587,10.84382771,86.085,86.033,37.90288433]
[1770472668890,34.91,86.106,86.033,37.90288433]